Workbook

Sheet Presupuesto Aprobado-Ejec ENER
A3: SERVICIO REGIONAL DE SALUD NORCENTRAL
A4: HOSPITAL REGIONAL UNIV. JOSE MARIA CABRAL Y BAEZ
A6: Ejecución de Gasto y Aplicaciones financieras
A7: INGRESOS VS En RD$ EN EL MES DE MARZO 2023
B8: INGRESOS FR EN RD$
B9: TOTAL
A10: DETALLE | B10: Presupuesto Aprobado | C10: Presupuesto Modificado | D10: Gasto devengado
D11: Enero 2023 | E11: Febrero2023 | F11: Marzo 2023 | G11: Abril 2023 | H11: Mayo 2023 | I11: Junio 2023 | J11: Julio 2023 | K11: Agosto 2023 | L11: Septiembre 2023 | M11: Octubre 2023 | N11: Noviembre 2023 | O11: Diciembre 2023 | P11: Total
A12: 2 - GASTOS
A13: 2.1 - REMUNERACIONES Y CONTRIBUCIONES | B13: =SUM(B14:B18) -> 1,157,708,982.66 | D13: =SUM(D14:D18) -> 1,191,938.98 | E13: =SUM(E14:E18) -> 1,158,121.26 | F13: =SUM(F14:F18) -> 14,568,740.78 | P13: =+D13+E13+F13+G13+H13+I13+J13+K13+L13+M13+N13+O13 -> 16,918,801.02
A14: 2.1.1 - REMUNERACIONES | B14: 1,101,752,364.22 | D14: 280,000.00 | E14: ='[1]CONS. FUENTES FINAN'!$H$27 -> 245,766.50 | F14: ='[2]CONS. FUENTES FINAN'!$J$27 -> 183,000.00 | P14: =+D14+E14+F14+G14+H14+I14+J14+K14+L14+M14+N14+O14 -> 708,766.50
A15: 2.1.2 - SOBRESUELDOS | B15: 55,956,618.44 | D15: 911,938.98 | E15: ='[1]CONS. FUENTES FINAN'!$J$51 -> 912,354.76 | F15: ='[2]CONS. FUENTES FINAN'!$J$51 -> 14,338,806.28 | P15: 16,163,100.02
A16: 2.1.3 - DIETAS Y GASTOS DE REPRESENTACIÓN | P16: 0.00
A17: 2.1.4 - GRATIFICACIONES Y BONIFICACIONES | F17: ='[2]CONS. FUENTES FINAN'!$J$71 -> 46,934.50 | P17: 46,934.50
A18: 2.1.5 - CONTRIBUCIONES A LA SEGURIDAD SOCIAL | P18: 0.00
A19: 2.2 - CONTRATACIÓN DE SERVICIOS | B19: =SUM(B20:B28) -> 10,523,592.16 | D19: =SUM(D20:D28) -> 532,275.47 | E19: =SUM(E20:E28) -> 494,447.50 | F19: =SUM(F20:F28) -> 708,848.93 | P19: 1,735,571.90 | R19: =P13/S90 -> 4%
A20: 2.2.1 - SERVICIOS BÁSICOS | B20: 3,961,103.72 | D20: 281,525.24 | P20: 281,525.24
A21: 2.2.2 - PUBLICIDAD, IMPRESIÓN Y ENCUADERNACIÓN | B21: 1,385,224.80 | E21: ='[1]CONS. FUENTES FINAN'!$J$106 -> 251,635.00 | F21: ='[2]CONS. FUENTES FINAN'!$J$110 -> 316,735.60 | P21: 568,370.60 | R21: =P19/S90 -> 0%
A22: 2.2.3 - VIÁTICOS | B22: 796,800.00 | P22: 0.00
A23: 2.2.4 - TRANSPORTE Y ALMACENAJE | B23: 72,800.00 | D23: 12,853.27 | E23: ='[1]CONS. FUENTES FINAN'!$J$116 -> 5,812.97 | F23: ='[2]CONS. FUENTES FINAN'!$J$116 -> 10,921.54 | P23: 29,587.78
A24: 2.2.5 - ALQUILERES Y RENTAS | B24: 80,000.00 | F24: ='[2]CONS. FUENTES FINAN'!$J$125 -> 119,399.94 | P24: 119,399.94
A25: 2.2.6 - SEGUROS | P25: 0.00
A26: 2.2.7 - SERVICIOS DE CONSERVACIÓN, REPARACIONES MENORES E INSTALACIONES TEMPORALES | B26: 2,286,090.17 | D26: 147,470.00 | E26: ='[1]CONS. FUENTES FINAN'!$J$157 -> 128,616.09 | F26: ='[2]CONS. FUENTES FINAN'!$J$167 -> 109,388.88 | P26: 385,474.97
A27: 2.2.8 - OTROS SERVICIOS NO INCLUIDOS EN CONCEPTOS ANTERIORES | B27: 1,941,573.47 | D27: 90,426.96 | E27: ='[1]CONS. FUENTES FINAN'!$J$179 -> 108,383.44 | F27: ='[2]CONS. FUENTES FINAN'!$J$179 -> 103,108.47 | P27: 301,918.87
A28: 2.2.9 - OTRAS CONTRATACIONES DE SERVICIOS | F28: 49,294.50 | P28: 49,294.50
A29: 2.3 - MATERIALES Y SUMINISTROS | B29: =SUM(B30:B38) -> 617,321,178.14 | D29: =SUM(D30:D38) -> 23,127,949.90 | E29: =SUM(E30:E38) -> 34,739,709.57 | F29: =SUM(F30:F38) -> 25,607,296.26 | P29: 83,474,955.73
A30: 2.3.1 - ALIMENTOS Y PRODUCTOS AGROFORESTALES | B30: 37,544,097.36 | E30: ='[1]CONS. FUENTES FINAN'!$J$213 -> 2,884,633.51 | F30: ='[2]CONS. FUENTES FINAN'!$J$213 -> 2,163,318 | P30: 5,047,951.31 | R30: =P29/S90 -> 19%
A31: 2.3.2 - TEXTILES Y VESTUARIOS | B31: 195,904.28 | P31: 0.00
A32: 2.3.3 - PRODUCTOS DE PAPEL, CARTÓN E IMPRESOS | B32: 5,736,570.64 | E32: ='[1]CONS. FUENTES FINAN'!$J$232 -> 137,792.91 | F32: ='[2]CONS. FUENTES FINAN'!$J$232 -> 382,729 | P32: =+D32+E32+F32+G32+H32+I32+J32+K32+L32+M32+N32+O32 -> 520,522.28
A33: 2.3.4 - PRODUCTOS FARMACÉUTICOS | B33: 288,979,087.70 | D33: 13,187,421.34 | E33: 13,014,313.79 | F33: ='[2]CONS. FUENTES FINAN'!$J$245 -> 9,096,597.65 | P33: 35,298,332.78
A34: 2.3.5 - PRODUCTOS DE CUERO, CAUCHO Y PLÁSTICO | B34: 4,658,262.82 | D34: 93,314.40 | E34: 250,312.80 | F34: ='[2]CONS. FUENTES FINAN'!$J$250 -> 393,521.31 | P34: 737,148.51
A35: 2.3.6 - PRODUCTOS DE MINERALES, METÁLICOS Y NO METÁLICOS | D35: 103,633.27 | E35: 25,795.60 | F35: ='[2]CONS. FUENTES FINAN'!$J$261 -> 32,533 | P35: 161,961.47
A36: 2.3.7 - COMBUSTIBLES, LUBRICANTES, PRODUCTOS QUÍMICOS Y CONEXOS | B36: 150,748,198.25 | D36: 6,054,341.63 | E36: 7,332,790.28 | F36: ='[2]CONS. FUENTES FINAN'!$J$286 -> 5,289,422.06 | P36: 18,676,553.97
A37: 2.3.8 - GASTOS QUE SE ASIGNARÁN DURANTE EL EJERCICIO (ART. 32 Y 33 LEY 423-06) | P37: 0.00
A38: 2.3.9 - PRODUCTOS Y ÚTILES VARIOS | B38: 129,459,057.09 | D38: 3,689,239.26 | E38: 11,094,070.68 | F38: ='[2]CONS. FUENTES FINAN'!$J$308 -> 8,249,175.47 | P38: 23,032,485.41
A39: 2.4 - TRANSFERENCIAS CORRIENTES | P39: =+D39+E39+F39+G39+H39+I39+J39+K39+L39+M39+N39+O39 -> 0.00
A40: 2.4.1 - TRANSFERENCIAS CORRIENTES AL SECTOR PRIVADO | P40: 0.00
A41: 2.4.2 - TRANSFERENCIAS CORRIENTES AL GOBIERNO GENERAL NACIONAL | P41: 0.00
A42: 2.4.3 - TRANSFERENCIAS CORRIENTES A GOBIERNOS GENERALES LOCALES | P42: 0.00
A43: 2.4.4 - TRANSFERENCIAS CORRIENTES A EMPRESAS PÚBLICAS NO FINANCIERAS | P43: 0.00
A44: 2.4.5 - TRANSFERENCIAS CORRIENTES A INSTITUCIONES PÚBLICAS FINANCIERAS | C44: 0 | P44: 0.00
A45: 2.4.7 - TRANSFERENCIAS CORRIENTES AL SECTOR EXTERNO | C45: 0 | P45: 0.00
A46: 2.4.9 - TRANSFERENCIAS CORRIENTES A OTRAS INSTITUCIONES PÚBLICAS | C46: 0 | P46: 0.00
A47: 2.5 - TRANSFERENCIAS DE CAPITAL | C47: 0 | P47: 0.00
A48: 2.5.1 - TRANSFERENCIAS DE CAPITAL AL SECTOR PRIVADO | C48: 0 | P48: 0.00
A49: 2.5.2 - TRANSFERENCIAS DE CAPITAL AL GOBIERNO GENERAL NACIONAL | C49: 0 | P49: 0.00
A50: 2.5.3 - TRANSFERENCIAS DE CAPITAL A GOBIERNOS GENERALES LOCALES | C50: 0 | P50: 0.00
A51: 2.5.4 - TRANSFERENCIAS DE CAPITAL A EMPRESAS PÚBLICAS NO FINANCIERAS | C51: 0 | P51: 0.00
A52: 2.5.5 - TRANSFERENCIAS DE CAPITAL A INSTITUCIONES PÚBLICAS FINANCIERAS | C52: 0 | P52: 0.00
A53: 2.5.6 - TRANSFERENCIAS DE CAPITAL AL SECTOR EXTERNO | C53: 0 | P53: 0.00
A54: 2.5.9 - TRANSFERENCIAS DE CAPITAL A OTRAS INSTITUCIONES PÚBLICAS | C54: 0 | P54: 0.00
A55: 2.6 - BIENES MUEBLES, INMUEBLES E INTANGIBLES | B55: =SUM(B56:B64) -> 16,147,052.66 | C55: =+C56+C57+C58+C59+C60+C61+C62+C63+C64 -> 0 | D55: =+D56+D57+D58+D59+D60+D61+D62+D63+D64 -> 0 | E55: 296,659.28 | F55: 101,999.99 | P55: =+D55+E55+F55+G55+H55+I55+J55+K55+L55+M55+N55+O55 -> 398,659.27
A56: 2.6.1 - MOBILIARIO Y EQUIPO | B56: 6,396,229.23 | E56: 245,159.28 | F56: ='[2]CONS. FUENTES FINAN'!$J$337 -> 7,000.00 | P56: 252,159.28
A57: 2.6.2 - MOBILIARIO Y EQUIPO EDUCACIONAL Y RECREATIVO | D57: 0 | P57: 0.00 | S57: =P55/S90 -> 0%
A58: 2.6.3 - EQUIPO E INSTRUMENTAL, CIENTÍFICO Y LABORATORIO | B58: 8,655,109.34 | D58: 0 | P58: 0.00
A59: 2.6.4 - VEHÍCULOS Y EQUIPO DE TRANSPORTE, TRACCIÓN Y ELEVACIÓN | D59: 0 | P59: 0.00
A60: 2.6.5 - MAQUINARIA, OTROS EQUIPOS Y HERRAMIENTAS | B60: 795,714.08 | D60: 0 | E60: 51,500.00 | F60: ='[2]CONS. FUENTES FINAN'!$J$383 -> 94,999.99 | P60: 146,499.99
A61: 2.6.6 - EQUIPOS DE DEFENSA Y SEGURIDAD | D61: 0 | P61: 0.00
A62: 2.6.7 - ACTIVOS BIÓLOGICOS CULTIVABLES | D62: 0 | P62: 0.00
A63: 2.6.8 - BIENES INTANGIBLES | B63: 300,000.00 | D63: 0 | P63: 0.00
A64: 2.6.9 - EDIFICIOS, ESTRUCTURAS, TIERRAS, TERRENOS Y OBJETOS DE VALOR | D64: 0 | P64: 0.00
A65: 2.7 - OBRAS | D65: =+D66+D67+D68+D69 -> 0 | P65: 0.00
A66: 2.7.1 - OBRAS EN EDIFICACIONES | D66: 0 | P66: 0.00
A67: 2.7.2 - INFRAESTRUCTURA | D67: 0 | P67: 0.00
A68: 2.7.3 - CONSTRUCCIONES EN BIENES CONCESIONADOS | D68: 0 | P68: 0.00
A69: 2.7.4 - GASTOS QUE SE ASIGNARÁN DURANTE EL EJERCICIO PARA INVERSIÓN (ART. 32 Y 33 LEY 423-06) | C69: 0 | D69: 0 | P69: 0.00
A70: 2.8 - ADQUISICION DE ACTIVOS FINANCIEROS CON FINES DE POLÍTICA | C70: 0 | D70: =+D71+D72 -> 0 | P70: 0.00
A71: 2.8.1 - CONCESIÓN DE PRESTAMOS | C71: 0 | D71: 0 | P71: 0.00
A72: 2.8.2 - ADQUISICIÓN DE TÍTULOS VALORES REPRESENTATIVOS DE DEUDA | C72: 0 | D72: 0 | P72: 0.00
A73: 2.9 - GASTOS FINANCIEROS | C73: 0 | D73: 0 | P73: =+D73+E73+F73+G73+H73+I73+J73+K73+L73+M73+N73+O73 -> 0.00
A74: 2.9.1 - INTERESES DE LA DEUDA PÚBLICA INTERNA | C74: 0 | D74: 0 | P74: =+D74+E74+F74+G74+H74+I74+J74+K74+L74+M74+N74+O74 -> 0.00
A75: 2.9.2 - INTERESES DE LA DEUDA PUBLICA EXTERNA | C75: 0 | D75: 0 | P75: 0.00
A76: 2.9.4 - COMISIONES Y OTROS GASTOS BANCARIOS DE LA DEUDA PÚBLICA | C76: 0 | D76: 0 | E76: 0 | F76: 0 | G76: 0 | H76: 0 | P76: 0.00
A77: 4 - APLICACIONES FINANCIERAS | C77: 0 | D77: 0 | E77: 0 | F77: 0 | G77: 0 | H77: 0 | P77: 0.00
A78: 4.1 - INCREMENTO DE ACTIVOS FINANCIEROS | C78: 0 | D78: 0 | E78: 0 | F78: 0 | G78: 0 | H78: 0 | P78: =+D78+E78+F78+G78+H78+I78+J78+K78+L78+M78+N78+O78 -> 0.00
A79: 4.1.1 - INCREMENTO DE ACTIVOS FINANCIEROS CORRIENTES | C79: 0 | D79: 0 | E79: 0 | F79: 0 | G79: 0 | H79: 0 | P79: 0.00
A80: 4.1.2 - INCREMENTO DE ACTIVOS FINANCIEROS NO CORRIENTES | C80: 0 | D80: 0 | E80: 0 | F80: 0 | G80: 0 | H80: 0 | P80: 0.00
A81: 4.2 - DISMINUCIÓN DE PASIVOS | C81: 0 | D81: 0 | E81: 0 | F81: 0 | G81: 0 | H81: 0 | P81: 0.00
A82: 4.2.1 - DISMINUCIÓN DE PASIVOS CORRIENTES | C82: 0 | D82: 0 | E82: 0 | F82: 0 | G82: 0 | H82: 0 | P82: 0.00
A83: 4.2.2 - DISMINUCIÓN DE PASIVOS NO CORRIENTES | D83: 0 | E83: 0 | F83: 0 | G83: 0 | H83: 0 | P83: 0.00
A84: 4.3 - DISMINUCIÓN DE FONDOS DE TERCEROS | C84: 0 | D84: 0 | E84: 0 | F84: 0 | G84: 0 | H84: 0 | P84: 0.00
A85: 4.3.5 - DISMINUCIÓN DEPÓSITOS FONDOS DE TERCEROS | C85: 0 | D85: 0 | E85: 0 | F85: 0 | G85: 0 | P85: 0.00
A86: Total general | B86: =+B13+B19+B29+B39+B55+B65 -> 1,801,700,805.62 | C86: =+C13+C19+C29+C39+C55+C65 -> 0 | D86: =+D13+D19+D29+D39+D55+D65 -> 24,852,164.35 | E86: =+E13+E19+E29+E39+E55+E65 -> 36,688,937.61 | F86: =+F13+F19+F29+F39+F55+F65 -> 40,986,885.96 | G86: 0 | H86: 0 | I86: =+I13+I19+I29+I39+I55+I65 -> 0 | J86: 0 | K86: 0 | L86: 0 | M86: 0 | P86: =+D86+E86+F86+G86+H86+I86+J86+K86+L86+M86+N86+O86 -> 102,527,987.92
A88: Presupuesto aprobado: Se refiere al presupuesto aprobado en la Ley de Presupuesto General del Estado.
A89: Presupuesto modificado: Se refiere al presupuesto aprobado en caso de que el Congreso Nacional apruebe un presupuesto complementario.
A90: Total devengado: Son los recursos financieros que surgen con la obligación de pago por la recepción de conformidad de obras, bienes y servicios oportunamente contratados o, en los casos de gastos sin contraprestación, por haberse cumplido los requisitos administrativos dispuestos por el reglamento de la presente Ley. | F90: =F86-'[2]CONS. FUENTES FINAN'!$J$25 -> 0 | S90: =B86/4 -> 450,425,201.40

Sheet INGRESOS DE VS ENERO 2023
A1: Establecimiento | B1: INGRESOS VS
A2: SANTIAGO | B2: ENERO 2023 | C2: FEBRERO 2023 | D2: MARZO 2023 | E2: ABRIL 2023 | F2: MAYO 2023 | G2: JUNIO 2023 | H2: JULIO 2022 | I2: AGOSTO 2022 | J2: SEPTIEMBRE 2022 | K2: OCTUBRE 2022 | L2: NOVIEMBRE 2022 | M2: DICIEMBRE 2022 | N2: TOTAL DEL 2023
A3: SERV. REGIONAL DE SALUD NORCENTRAL II | N3: =SUM(B3:M3) -> 0
A4: Hospital Regional Universitario José María Cabral y Báez | B4: 22,829,103.38 | C4: 47,851,998.22 | N4: =SUM(B4:M4) -> 70,681,101.60
A5: Hospital Infantil Regional Dr. Arturo Grullón | N5: =SUM(B5:M5) -> 0
A6: Unidad de Niños Quemados Dra. Thelma Rosario | N6: 0
A7: Hospital Municipal Licey al Medio | N7: 0
A8: Centro de Atención Integral Bella Vista | N8: 0
A9: Hospital Municipal de Tamboril | N9: 0
A10: Hospital Napier Díaz (Villa González) | N10: 0
A11: Hospital Municipal de Sabana Iglesia | N11: 0
A12: Hospital Municipal de Jánico | N12: 0
A13: Hospital Muncipal de San José de las Matas | N13: 0
A14: Hospital Dr. Rafael Castro | N14: 0
A15: Hospital Periférico Ensanche Libertad | N15: 0
A16: Hospital Periférico Monte Adentro | N16: 0
A17: Hospital Municipal de Navarrete | N17: 0
A18: Centro Especializado Juan XXIII | N18: 0
A19: Hospital Municipal de Hato del Yaque | N19: 0
A20: Hospital Municipal Antonio Fernández (Baitoa) | N20: 0
A21: Hospital Presidente Estrella Ureña | N21: 0
A22: PUERTO PLATA | N22: 0
A23: Hospital Ricardo Limardo | N23: 0
A24: Hospital Dolores de la Cruz Montellano (no tienen vs) | N24: 0
A25: Hospital Pablo Morrobel Jimenez Luperón | N25: 0
A26: Hospital Municipal de Imbert | N26: 0
A27: Hospital Municipal de Altamira | N27: 0
A28: Hospital Dr. Rafael Cantisano Arias (Los Hidalgos) | N28: 0
A29: Centro Sanitario Dr. Francisco González Hardy (no tienen vs ) | N29: 0
A30: Hospital Municipal de Villa Isabela | N30: 0
A31: Hospital Municipal de Guananico | N31: 0
A32: Hospital General Gregorio Luperón (Montellano) | N32: 0
A33: ESPAILLAT | N33: 0
A34: Hospital Provincial Toribio Bencosme | N34: 0
A35: Hospital Municipal Manuel de Luna Gaspar Hernández | N35: 0
A36: Hospital Dr. Rafael Gutiérrez Sánchez Cayetano Germosén | N36: 0
A37: Hospital Municipal José Contreras Villa Trina | N37: 0
A38: Hospital Municipal Jamao al Norte | N38: 0
A39: TOTAL INGRESOS RECIBIDOS VS | B39: =SUM(B3:B38) -> 22,829,103.38 | N39: =SUM(B39:M39) -> 22,829,103.38
